bitfinex/quotes_SOLUSD_20250920
["timestamp","ask_amount","ask_price","bid_price","bid_amount"]
[1758387953427,4.15593051,240.62,240.61,0.1]
[1758387955764,4.1557578,240.63,240.61,0.1]
[1758387958043,4.8757578,240.63,240.61,0.1]
[1758387958556,4.1557578,240.63,240.61,0.1]
[1758387958745,4.87593051,240.62,240.61,0.1]
[1758387962450,4.15593051,240.62,240.61,0.1]
[1758387964270,31.2,240.65,240.61,2.23565252]
[1758387964437,35.35545933,240.65,240.62,2.13565252]
[1758387964633,35.35545933,240.65,240.63,0.69]
[1758387965558,35.35545933,240.65,240.64,0.69]
[1758387965764,38.14994237,240.65,240.63,31.84]
[1758387965943,35.35545933,240.65,240.63,31.84]
[1758387967271,35.35545933,240.65,240.63,32.53]
[1758387967854,35.35545933,240.65,240.64,0.69]
[1758387968172,38.15010362,240.65,240.64,0.69]
[1758387968369,33.99464429,240.65,240.64,0.69]
[1758387968584,4.15507966,240.67,240.64,0.69]
[1758387969150,6.94976448,240.67,240.64,0.69]
[1758387969350,2.79468482,240.66,240.64,0.69]
[1758387969770,2.79468482,240.67,240.64,0.69]
[1758387970069,4.81489446,240.68,240.64,0.69]
[1758387970268,6.94957928,240.68,240.64,0.69]
[1758387970569,0.66,240.67,240.64,0.69]
[1758387970776,3.45468482,240.67,240.63,31.84]
[1758387970956,2.79468482,240.67,240.63,32.53]
[1758387971160,3.45468482,240.67,240.63,32.53]
[1758387971366,0.66,240.66,240.63,32.53]
[1758387971671,4.15541242,240.65,240.63,32.53]
[1758387972074,4.15541242,240.65,240.63,31.84]
[1758387972864,4.15541242,240.65,240.63,32.53]
[1758387973551,4.15541242,240.65,240.63,31.84]
[1758387973750,4.15523975,240.66,240.64,0.69]
[1758387974677,4.15523975,240.66,240.63,31.84]
[1758387974877,4.15523975,240.66,240.63,32.53]
[1758387975359,4.81523975,240.66,240.63,32.53]
[1758387975976,4.15523975,240.66,240.64,0.69]
[1758387977872,4.81523975,240.66,240.63,31.84]
[1758387978078,4.81523975,240.66,240.63,32.53]
[1758387979800,4.15523975,240.66,240.63,32.53]
[1758387980482,4.81523975,240.66,240.63,32.53]
[1758387980871,7.60992457,240.66,240.63,32.53]
[1758387981074,4.81523975,240.66,240.63,32.53]
[1758387981271,4.81523975,240.66,240.63,31.84]
[1758387981473,7.61331112,240.66,240.63,31.84]
[1758387981782,4.81523975,240.66,240.63,31.84]
[1758387982087,3.45818011,240.65,240.63,31.84]
[1758387982263,3.45818011,240.64,240.63,31.84]
[1758387982586,14.54333914,240.66,240.63,31.84]
[1758387982587,3.45818011,240.65,240.63,31.84]
[1758387982792,2.79818011,240.64,240.63,31.84]
[1758387983082,2.79818011,240.64,240.62,31.84]
[1758387983280,6.95393791,240.63,240.62,31.84]
[1758387983468,7.61393791,240.63,240.62,31.84]
[1758387983674,4.8157578,240.63,240.62,31.84]
[1758387983878,6.95393791,240.63,240.62,31.84]
[1758387984191,4.1557578,240.63,240.62,31.84]
[1758387984483,6.95393791,240.63,240.62,31.84]
[1758387984872,4.1557578,240.63,240.62,31.84]
[1758387985073,6.95393791,240.63,240.62,31.84]
[1758387986868,6.95393791,240.63,240.62,32.55]
[1758387987993,2.79818011,240.63,240.62,32.55]
[1758387988888,2.79818011,240.63,240.62,34.80892813]
[1758387989111,4.15523975,240.66,240.62,34.80892813]
[1758387989271,2.80268227,240.65,240.63,0.71]
[1758387989573,2.80268227,240.64,240.63,0.71]
[1758387994692,2.80268227,240.64,240.63,2.96892813]
[1758387995780,11.04699955,240.69,240.64,13.59559401]
[1758387995781,4.15488707,240.69,240.64,13.59559401]
[1758387995989,2.80236862,240.68,240.67,2.25892813]
[1758387996494,2.80236862,240.68,240.65,31.84]
[1758387996801,2.80193387,240.67,240.66,0.71]
[1758387997297,2.80193387,240.67,240.66,2.96892813]
[1758387998480,2.80193387,240.69,240.66,2.96892813]
[1758387998690,2.80193387,240.68,240.67,0.71]
[1758387998889,2.80193387,240.68,240.67,32.55]
[1758387999310,2.80193387,240.69,240.67,32.55]
[1758387999506,4.15468995,240.7,240.67,31.84]
[1758387999809,2.80092863,240.69,240.67,32.55]
[1758388000010,4.15468995,240.7,240.67,32.55]
[1758388000190,2.80096483,240.69,240.67,31.84]
[1758388000514,0.66,240.7,240.67,31.84]
[1758388000685,2.80066212,240.69,240.67,31.84]
[1758388000885,4.15420405,240.72,240.67,31.84]
[1758388001091,2.80066143,240.71,240.68,0.71]
[1758388001393,2.80066143,240.7,240.67,31.84]
[1758388001706,2.80066143,240.69,240.67,32.55]
[1758388001886,0.66,240.71,240.67,32.55]
[1758388002089,2.80034756,240.7,240.67,32.55]
[1758388002279,2.80034756,240.69,240.67,32.55]
[1758388002480,2.80034756,240.7,240.67,32.55]
[1758388002701,2.80034756,240.69,240.67,32.55]
[1758388002910,2.80034756,240.7,240.68,0.71]
[1758388003098,2.80034756,240.69,240.68,0.71]
[1758388003297,2.80034756,240.7,240.69,0.71]
[1758388003488,2.80034756,240.73,240.69,2.96892813]
[1758388003689,2.80034756,240.72,240.7,32.53]
[1758388003893,2.80034756,240.71,240.7,31.82]
[1758388004104,2.80034756,240.72,240.7,34.07892813]
[1758388004501,2.79878642,240.72,240.71,0.71]
[1758388004704,35.35408698,240.73,240.7,32.53]
[1758388004886,2.79882077,240.72,240.7,32.53]
[1758388005313,35.35408698,240.73,240.7,32.53]
[1758388005813,35.35408698,240.73,240.71,0.71]
[1758388006014,31.2,240.73,240.72,32.53]
[1758388006206,33.99808947,240.73,240.72,32.53]
[1758388006595,33.99808947,240.73,240.72,31.82]
[1758388007294,38.15212095,240.73,240.72,31.82]
[1758388012011,38.81212095,240.73,240.72,31.82]
[1758388012797,38.15212095,240.73,240.72,31.82]
[1758388020516,38.15212095,240.73,240.72,32.51]
[1758388021116,38.15212095,240.73,240.72,31.82]
[1758388029008,38.15212095,240.73,240.72,32.52]
[1758388029202,2.79808947,240.73,240.72,48.37452214]
[1758388029423,4.15366652,240.76,240.72,34.77892813]
[1758388029616,2.79808947,240.75,240.72,34.07892813]
[1758388029827,2.79808947,240.75,240.73,0.7]
[1758388030918,2.79808947,240.75,240.73,2.95892813]
[1758388031119,2.79808947,240.75,240.74,0.7]
[1758388033335,2.79781695,240.75,240.74,0.7]
[1758388039151,7.63150334,240.75,240.74,31.8]
[1758388040151,6.95150334,240.75,240.74,31.8]
[1758388042761,2.79781695,240.75,240.74,32.5]
[1758388048351,2.79781695,240.75,240.74,31.8]
[1758388048948,6.95154071,240.75,240.74,31.8]
[1758388052559,2.79781695,240.75,240.74,46.09559401]
[1758388060564,2.79781695,240.75,240.74,47.54011141]
[1758388063177,2.79781695,240.75,240.74,46.09559401]
[1758388064764,2.79781695,240.75,240.74,14.29559401]
[1758388064966,2.79781695,240.75,240.74,46.09559401]
[1758388067476,2.79781695,240.75,240.74,47.54011141]
[1758388067650,2.80269405,240.79,240.75,13.59559401]
[1758388067853,7.23775013,240.83,240.79,13.59559401]
[1758388067854,0.1,240.83,240.79,13.59559401]
[1758388068053,2.80232798,240.82,240.8,32.48]
[1758388068253,2.80232798,240.81,240.8,32.48]
[1758388070082,2.80232798,240.81,240.8,31.78]
[1758388070285,2.80232798,240.81,240.8,47.52011141]
[1758388071270,2.80232798,240.82,240.81,13.59559401]
[1758388071780,2.80232798,240.82,240.81,45.37559401]
[1758388073487,2.80232798,240.82,240.81,46.07559401]
[1758388073900,2.80232798,240.82,240.81,47.52011141]
[1758388076298,0.1,240.83,240.82,13.59559401]
[1758388076490,2.90232798,240.83,240.82,13.59559401]
[1758388076798,0.1,240.83,240.82,13.59559401]
[1758388076992,2.90232798,240.83,240.82,13.59559401]
[1758388077178,0.1,240.83,240.82,13.59559401]
[1758388077379,2.90232798,240.83,240.82,13.59559401]
[1758388077579,0.1,240.83,240.82,13.59559401]
[1758388077907,2.90232798,240.83,240.82,45.37559401]
[1758388080800,0.1,240.83,240.82,47.48011141]
[1758388081579,2.90232798,240.83,240.82,47.48011141]
[1758388081798,0.1,240.83,240.82,47.48011141]
[1758388087610,0.1,240.83,240.82,51.63259043]
[1758388088709,0.1,240.83,240.82,58.67890403]
[1758388093899,0.1,240.83,240.82,59.48889919]
[1758388096900,0.1,240.83,240.82,59.46889919]
[1758388098806,0.1,240.87,240.86,13.59559401]
[1758388099003,0.1,240.87,240.86,16.26528551]
[1758388099317,0.1,240.87,240.86,48.74528551]
[1758388099524,0.1,240.87,240.86,50.409006]
[1758388099702,0.1,240.87,240.86,18.649006]
[1758388099914,0.1,240.87,240.86,54.56079542]
[1758388102412,0.1,240.87,240.86,52.30628286]
[1758388102620,0.1,240.87,240.86,54.56079542]
[1758388103014,0.1,240.87,240.86,22.80079542]
[1758388103216,0.1,240.87,240.86,54.56079542]
[1758388105340,0.1,240.87,240.86,22.80079542]
[1758388105544,0.1,240.87,240.86,54.56079542]
[1758388112506,0.1,240.87,240.86,15.67449344]
[1758388112706,0.79,240.87,240.86,49.27382706]
[1758388113636,0.79,240.87,240.86,15.2593145]
[1758388113940,4.94161705,240.87,240.86,45.35559401]
[1758388117020,4.94161705,240.87,240.86,31.76]
[1758388117837,15.32065968,240.87,240.86,31.76]
[1758388119744,17.57517224,240.87,240.8,12.47965988]
[1758388119927,17.57517224,240.87,240.81,45.35559401]
[1758388119928,5.73447167,240.86,240.81,45.35559401]
[1758388120328,0.69,240.85,240.81,45.35559401]
[1758388120514,0.69,240.84,240.82,31.76]
[1758388120721,4.8423066,240.83,240.82,31.76]
[1758388123436,4.8423066,240.83,240.78,13.59559401]
[1758388123437,15.22307311,240.83,240.78,13.59559401]
[1758388123654,0.69,240.82,240.79,31.76]
[1758388124068,0.69,240.81,240.79,31.76]
[1758388124649,0.69,240.8,240.79,45.35559401]
[1758388125244,4.84282392,240.8,240.79,45.35559401]
[1758388125956,4.15282392,240.8,240.79,45.35559401]
[1758388126346,4.15265146,240.81,240.79,45.35559401]
[1758388126548,4.84265146,240.81,240.79,47.61010657]
[1758388129566,4.84265146,240.81,240.79,45.35559401]
[1758388135869,4.15265146,240.81,240.79,45.35559401]
[1758388136567,4.84265146,240.81,240.79,13.59559401]
[1758388136750,7.09716402,240.81,240.8,31.76]
[1758388139452,6.40716402,240.81,240.8,31.76]
[1758388139872,7.09716402,240.81,240.8,31.76]
[1758388141052,4.15265146,240.81,240.8,31.76]
[1758388142882,6.40716402,240.81,240.8,31.76]
[1758388149291,4.15265146,240.81,240.8,31.76]
[1758388149592,6.40716402,240.81,240.8,31.76]
[1758388150891,4.15265146,240.81,240.8,31.76]
[1758388157187,6.94557653,240.81,240.8,31.76]
[1758388157391,6.94557653,240.81,240.79,13.59559401]
[1758388157392,8.38974068,240.81,240.79,13.59559401]
[1758388157584,5.59681561,240.81,240.8,31.76]
[1758388157783,8.39528371,240.81,240.79,13.59559401]
[1758388157985,5.59681561,240.81,240.8,31.76]
[1758388158199,8.39531995,240.81,240.8,31.76]
[1758388162015,19.43694861,240.81,240.75,13.59559401]
[1758388162172,1.44416415,240.79,240.76,45.35559401]
[1758388162376,2.79850434,240.78,240.77,13.59559401]
[1758388162584,2.79850434,240.78,240.77,45.35559401]
[1758388163401,6.9516732,240.78,240.77,46.07559401]
[1758388164094,6.9516732,240.78,240.77,45.35559401]
[1758388167808,6.9516732,240.78,240.77,46.07559401]
[1758388168304,6.9516732,240.78,240.77,45.35559401]
[1758388168806,6.9516732,240.78,240.77,46.07559401]
[1758388169007,6.9516732,240.78,240.77,45.35559401]
[1758388169305,6.9516732,240.78,240.77,14.31559401]
[1758388169507,6.9516732,240.78,240.77,46.07559401]
[1758388169894,2.79850434,240.78,240.77,46.07559401]
[1758388172686,2.79850434,240.78,240.77,14.31559401]
[1758388172886,2.79850434,240.78,240.77,46.07559401]
[1758388179091,2.79850434,240.78,240.77,51.67309952]
[1758388179295,2.8040406,240.83,240.78,13.59559401]
[1758388179607,2.8040406,240.82,240.81,13.59559401]
[1758388179905,2.8040406,240.82,240.81,47.9350233]
[1758388180094,2.80369938,240.86,240.81,47.9350233]
[1758388180295,2.80369938,240.85,240.84,13.59559401]
[1758388180496,2.80369938,240.85,240.84,46.07559401]
[1758388180983,2.80369938,240.85,240.84,47.51975816]
[1758388181188,2.80369938,240.85,240.84,51.67189235]
[1758388182224,2.80369938,240.86,240.84,51.67189235]
[1758388182421,2.80369938,240.86,240.85,14.31559401]
[1758388183211,0.1,240.87,240.86,13.59559401]
[1758388183396,2.90369938,240.87,240.86,46.07559401]
[1758388183600,0.1,240.87,240.86,46.07559401]
[1758388183991,0.1,240.87,240.86,45.35559401]
[1758388184191,0.1,240.87,240.86,46.07559401]
[1758388187506,0.1,240.87,240.86,45.35559401]
[1758388190702,0.79,240.87,240.85,13.59559401]
[1758388190915,5.6957812,240.87,240.86,45.33559401]
[1758388191428,6.3857812,240.87,240.8,13.59559401]
[1758388191617,1.44416415,240.84,240.82,13.59559401]
[1758388191805,2.13416415,240.84,240.83,45.33559401]
[1758388192530,0.69,240.84,240.83,45.33559401]
[1758388193022,4.84213419,240.84,240.83,45.33559401]
[1758388193721,4.15213419,240.84,240.83,45.33559401]
[1758388194344,5.59613337,240.85,240.83,45.33559401]
[1758388194648,0.1,240.87,240.84,14.31559401]
[1758388194841,0.1,240.87,240.85,32.46]
[1758388195219,0.1,240.87,240.86,0.72]
[1758388195530,0.1,240.87,240.86,14.31559401]
[1758388195930,0.1,240.87,240.86,13.59559401]
[1758388196125,2.20416415,240.87,240.86,31.74]
[1758388197838,6.3557812,240.87,240.86,31.74]
[1758388198648,4.91161705,240.87,240.86,31.74]
[1758388205122,4.25161705,240.87,240.86,31.74]
[1758388213455,4.25161705,240.87,240.86,32.44]
[1758388214643,4.25161705,240.87,240.86,31.74]
[1758388215050,4.25161705,240.87,240.86,32.44]
[1758388215649,4.25161705,240.87,240.86,31.74]
[1758388218357,7.04732089,240.87,240.86,31.74]
[1758388218845,4.25161705,240.87,240.86,31.74]
[1758388219363,7.04732089,240.87,240.86,31.74]
[1758388219856,7.70732089,240.87,240.86,31.74]
[1758388220457,7.04732089,240.87,240.86,31.74]
[1758388222860,7.70732089,240.87,240.86,31.74]
[1758388223945,7.04732089,240.87,240.86,31.74]
[1758388225475,19.68145056,240.87,240.79,7.04732089]
[1758388225666,5.71079088,240.86,240.82,13.59559401]
[1758388225982,2.79570384,240.85,240.83,32.41]
[1758388226149,2.79570384,240.84,240.83,46.00559401]
[1758388227876,6.94783803,240.84,240.83,46.00559401]
[1758388231865,6.94783803,240.84,240.83,45.33559401]
[1758388233075,6.94783803,240.84,240.83,46.00559401]
[1758388233779,6.95434937,240.84,240.83,46.00559401]
[1758388257082,6.95434937,240.84,240.83,45.33559401]
[1758388258888,6.95434937,240.84,240.83,45.98559401]
[1758388260281,6.95434937,240.84,240.83,45.33559401]
[1758388262583,2.80221518,240.84,240.83,45.98559401]
[1758388275719,6.95434937,240.84,240.83,45.98559401]
[1758388275897,6.95434937,240.84,240.83,45.33559401]
[1758388279399,2.8039476,240.84,240.83,45.33559401]
[1758388280903,6.95608179,240.84,240.83,45.33559401]
[1758388284419,2.8039476,240.84,240.83,45.33559401]
[1758388284635,2.8039476,240.84,240.83,46.01559401]
[1758388284945,2.8039476,240.84,240.83,45.33559401]
[1758388286151,15.28756285,240.84,240.83,45.33559401]
[1758388286450,15.28756285,240.84,240.83,46.00559401]
[1758388286660,15.28756285,240.84,240.83,45.33559401]
[1758388286841,2.8039476,240.84,240.83,45.33559401]
[1758388287343,2.8039476,240.84,240.83,46.00559401]
[1758388303661,2.8039476,240.84,240.83,45.33559401]
[1758388309653,2.8039476,240.84,240.83,46.00559401]
[1758388313079,2.8039476,240.84,240.83,45.33559401]
[1758388314082,2.8039476,240.84,240.83,46.00559401]
[1758388319883,2.8039476,240.84,240.83,45.33559401]
[1758388320577,2.8039476,240.84,240.83,46.04559401]
[1758388324187,0.82,240.87,240.83,46.04559401]
[1758388324188,0.1,240.87,240.84,13.59559401]
[1758388324388,0.1,240.87,240.86,15.03915773]
[1758388324766,0.1,240.87,240.86,15.69915773]
[1758388325264,0.1,240.87,240.86,21.51501371]
[1758388326071,0.1,240.89,240.88,44.79559401]
[1758388326270,0.1,240.89,240.88,78.3543022]
[1758388326487,0.1,240.89,240.88,79.0143022]
[1758388326872,0.1,240.89,240.88,80.6779535]
[1758388327292,0.1,240.89,240.88,84.8293982]
[1758388327471,0.1,240.89,240.88,84.41425373]
[1758388331298,0.1,240.89,240.88,82.97069001]
[1758388331477,0.1,240.89,240.88,84.41425373]
[1758388335976,0.77,240.89,240.88,46.45924531]
[1758388336290,0.77,240.89,240.88,45.27559401]
[1758388337616,0.77,240.89,240.88,13.59559401]
[1758388337791,0.77,240.89,240.88,45.27559401]
[1758388339015,0.77,240.89,240.85,6.47592747]
[1758388339016,4.92127236,240.89,240.85,1.66399734]
[1758388339185,0.67,240.88,240.86,45.27559401]
[1758388339389,0.67,240.87,240.86,45.27559401]
[1758388340790,4.82161705,240.87,240.86,45.27559401]
[1758388347502,0.67,240.87,240.86,45.27559401]
[1758388348706,0.67,240.87,240.86,13.59559401]
[1758388349011,0.67,240.87,240.86,45.27559401]
[1758388349505,4.82161705,240.87,240.86,45.27559401]
[1758388351115,7.07593386,240.87,240.8,5.14748673]
[1758388351288,5.73781674,240.86,240.82,13.59559401]
[1758388351612,0.69,240.85,240.83,31.68]
[1758388351992,15.22065968,240.87,240.83,31.68]
[1758388352208,0.69,240.86,240.83,31.68]
[1758388352710,4.1519618,240.85,240.83,31.68]
[1758388358521,10.37904263,240.87,240.83,31.68]
[1758388358708,10.37904263,240.87,240.77,7.07593386]
[1758388358709,31.89,240.84,240.76,13.59559401]
[1758388358906,2.25431681,240.8,240.78,13.59559401]
[1758388359111,2.25431681,240.8,240.79,32.18]
[1758388359599,2.94431681,240.8,240.79,32.18]
[1758388359793,2.94431681,240.8,240.76,13.59559401]
[1758388359994,2.25431681,240.77,240.73,13.59559401]
[1758388360217,0.69,240.76,240.75,13.59559401]
[1758388360419,2.25431681,240.77,240.75,45.75559401]
[1758388360624,7.09776977,240.77,240.75,45.75559401]
[1758388361917,2.25431681,240.78,240.75,45.75559401]
[1758388362110,2.94431681,240.78,240.75,45.75559401]
[1758388362319,0.69,240.77,240.75,45.75559401]
[1758388363132,4.84337452,240.77,240.75,45.75559401]
[1758388365324,7.09769133,240.77,240.75,45.75559401]
[1758388366414,2.94431681,240.76,240.67,2.93431681]
[1758388366612,2.25431681,240.73,240.68,45.73559401]
[1758388366924,2.94431681,240.72,240.68,46.41559401]
[1758388367108,0.69,240.73,240.69,0.68]
[1758388367315,0.69,240.72,240.7,32.14]
[1758388367502,0.69,240.72,240.62,0.68]
[1758388367503,2.94431681,240.71,240.62,0.68]
[1758388367698,2.25431681,240.66,240.63,25.4]
[1758388367925,2.25431681,240.64,240.63,25.4]
[1758388368136,0.69,240.64,240.63,25.4]
[1758388368337,2.94431681,240.64,240.63,25.4]
[1758388369108,13.33178792,240.64,240.61,32.72]
[1758388369308,2.25431681,240.62,240.61,32.72]
[1758388369508,2.94431681,240.62,240.61,32.72]
[1758388369730,2.94431681,240.62,240.61,0.3]
[1758388369931,38.30024732,240.62,240.61,0.3]
[1758388370729,50.79842467,240.62,240.61,0.3]
[1758388379134,47.85410786,240.62,240.61,0.3]
[1758388379659,50.10842467,240.62,240.61,0.3]
[1758388380634,50.79842467,240.62,240.61,0.3]
[1758388384130,100.79842467,240.62,240.61,0.3]
[1758388391024,31.2,240.59,240.58,0.2]
[1758388391225,2.25431681,240.59,240.58,0.2]
[1758388391523,7.09076554,240.59,240.58,0.2]
[1758388391732,8.75753638,240.59,240.58,0.2]
[1758388393461,7.09076554,240.59,240.58,0.2]
[1758388394027,6.41076554,240.59,240.58,0.2]
[1758388394226,6.41076554,240.59,240.58,0.91]
[1758388394454,6.41076554,240.59,240.58,0.2]
[1758388395242,37.61076554,240.59,240.58,0.2]
[1758388395441,6.41076554,240.59,240.58,0.2]
[1758388395842,4.15644873,240.59,240.58,0.2]
[1758388396035,35.35644873,240.59,240.58,0.2]
[1758388396236,4.15644873,240.59,240.58,0.2]
[1758388396850,31.2,240.59,240.58,0.2]
[1758388397045,36.43627597,240.6,240.58,0.2]
[1758388397248,37.11627597,240.6,240.58,0.2]
[1758388397648,31.2,240.59,240.58,0.2]
[1758388398041,37.09627597,240.6,240.58,0.2]
[1758388399939,0.68,240.59,240.58,0.2]
[1758388400269,8.78369864,240.59,240.58,0.2]
[1758388400444,10.45060839,240.59,240.58,0.2]
[1758388401446,42.69060839,240.59,240.58,0.2]
[1758388401652,46.84705712,240.59,240.58,0.2]
[1758388402161,46.84705712,240.59,240.58,1e-08]
[1758388402374,48.29413784,240.59,240.58,1e-08]
[1758388402865,31.2,240.56,240.54,0.2]
[1758388403077,72.99077936,240.55,240.54,0.2]
[1758388403375,41.43077936,240.55,240.54,0.2]
[1758388403543,75.33803651,240.55,240.54,0.2]
[1758388404240,79.49517639,240.55,240.54,0.2]
[1758388405064,79.47517639,240.55,240.54,0.2]
[1758388406261,79.47517639,240.55,240.54,1e-08]
[1758388406470,79.47517639,240.55,240.53,1e-08]
[1758388406653,79.47517639,240.55,240.52,1e-08]
[1758388406654,8.56074236,240.54,240.52,1e-08]
[1758388406853,45.50275691,240.55,240.49,0.2]
[1758388406854,31.2,240.5,240.49,1e-08]
[1758388407062,73.27077936,240.5,240.49,1e-08]
[1758388407262,77.4672915,240.5,240.49,1e-08]
[1758388407786,77.4672915,240.5,240.42,0.68]
[1758388407972,77.4672915,240.5,240.4,0.88]
[1758388407973,1.44708072,240.43,240.4,0.88]
[1758388408260,4.15938773,240.42,240.41,0.78]
[1758388412476,6.93180721,240.42,240.41,0.78]
[1758388412674,31.2,240.42,240.41,0.78]
[1758388414180,31.2,240.44,240.41,0.78]
[1758388415373,4.15921474,240.43,240.41,0.78]
[1758388415679,4.15921474,240.43,240.42,0.68]
[1758388417757,31.2,240.44,240.42,0.68]
[1758388418456,4.15869583,240.46,240.42,0.68]
[1758388420274,14.55498791,240.47,240.42,0.68]
[1758388421382,31.2,240.45,240.42,0.68]
[1758388421685,31.2,240.46,240.42,0.68]
[1758388422984,4.15873564,240.46,240.42,0.68]
[1758388423488,0.72,240.45,240.41,0.1]
[1758388423669,0.72,240.44,240.41,0.1]
[1758388423871,1.44708072,240.43,240.41,0.1]
[1758388424783,4.15938773,240.42,240.41,0.1]
[1758388426191,31.2,240.42,240.41,0.1]
[1758388427384,4.15938773,240.42,240.41,0.1]
[1758388430308,4.15938773,240.42,240.41,0.78]
[1758388431192,35.3592306,240.43,240.41,0.78]
[1758388431382,35.3592306,240.43,240.42,0.68]
[1758388431775,35.3592306,240.43,240.41,0.1]
[1758388431975,35.3592306,240.43,240.41,0.78]
[1758388432188,35.3592306,240.43,240.42,0.68]
[1758388433393,35.3592306,240.43,240.41,0.78]
[1758388433896,35.3592306,240.43,240.41,0.1]
[1758388434195,35.3592306,240.43,240.41,0.78]
[1758388435385,35.3592306,240.43,240.41,0.1]
[1758388438081,35.3592306,240.43,240.41,0.75]
[1758388439004,31.2,240.43,240.42,0.65]
[1758388439499,35.35921474,240.43,240.42,0.65]
[1758388440696,31.2,240.43,240.42,0.65]
[1758388442303,35.35921474,240.43,240.42,0.65]
[1758388442495,35.35921474,240.43,240.41,0.75]
[1758388446908,35.35921474,240.43,240.41,0.1]
[1758388447511,35.35921474,240.43,240.4,0.2]
[1758388447512,3.47364575,240.42,240.4,0.2]
[1758388447809,35.45072647,240.41,240.4,0.2]
[1758388447989,4.25072647,240.41,240.4,0.2]
[1758388448189,4.92072647,240.41,240.4,0.2]
[1758388448390,3.47364575,240.41,240.4,0.2]
[1758388448899,4.92072647,240.41,240.4,0.2]
[1758388449317,9.08028722,240.41,240.4,0.2]
[1758388449823,40.28028722,240.41,240.4,0.2]
[1758388450204,38.8332065,240.41,240.4,0.2]
[1758388450406,40.28028722,240.41,240.4,0.2]
[1758388451693,38.8332065,240.41,240.4,0.2]
[1758388451897,40.28028722,240.41,240.4,0.2]
[1758388453125,38.83527031,240.41,240.4,0.2]
[1758388453311,40.28235103,240.41,240.4,0.2]
[1758388453508,38.83527031,240.41,240.4,0.2]
[1758388453713,38.16527031,240.41,240.4,0.92]
[1758388453908,39.8330836,240.41,240.4,0.92]
[1758388454109,39.8330836,240.41,240.4,0.2]
[1758388454411,41.95016432,240.41,240.4,0.2]
[1758388454716,12.81022055,240.41,240.4,0.2]
[1758388454908,41.95016432,240.41,240.4,0.2]
[1758388455315,14.25610908,240.41,240.4,0.2]
[1758388457197,45.45610908,240.41,240.4,0.2]
[1758388457404,14.25610908,240.41,240.4,0.2]
[1758388457609,45.45610908,240.41,240.4,0.2]
[1758388457914,41.95016432,240.41,240.4,0.2]
[1758388458118,45.45610908,240.41,240.4,0.2]
[1758388458327,45.45610908,240.41,240.36,0.2]
[1758388458328,31.2,240.38,240.36,0.2]
[1758388458546,4.25279028,240.37,240.33,0.2]
[1758388458704,31.2,240.35,240.33,0.2]
[1758388458899,4.25279028,240.34,240.33,0.2]
[1758388459131,9.08356251,240.34,240.33,0.2]
[1758388459334,7.63648179,240.34,240.33,0.2]
[1758388459634,10.75207149,240.34,240.33,0.2]
[1758388459815,11.57165677,240.34,240.33,0.2]
[1758388460341,33.466666,240.32,240.31,0.1]
[1758388460629,34.00570956,240.32,240.31,0.1]
[1758388460816,36.94237556,240.32,240.31,0.1]
[1758388461019,38.83682806,240.32,240.31,0.1]
[1758388461421,41.10349406,240.32,240.31,0.1]
[1758388461821,38.83682806,240.32,240.31,0.1]
[1758388462049,41.10349406,240.32,240.31,0.1]
[1758388462236,38.83682806,240.32,240.31,0.1]
[1758388462408,46.43477322,240.32,240.31,0.1]
[1758388462729,44.16810722,240.32,240.31,0.1]
[1758388462940,46.43477322,240.32,240.31,0.1]
[1758388463106,38.16682806,240.32,240.31,0.1]
[1758388463506,38.2977845,240.32,240.31,0.1]
[1758388464014,35.3611185,240.32,240.31,0.1]
[1758388464629,4.1611185,240.32,240.31,0.1]
[1758388465718,6.4277845,240.32,240.31,0.1]
[1758388465921,37.6277845,240.32,240.31,0.1]
[1758388466326,6.4277845,240.32,240.31,0.1]
[1758388467834,4.1611185,240.32,240.31,0.1]